{"text_format":"3","workbook":"xlsx","n_sheets":1,"sheets":["OMKOSTNINGER VED OMBYGNING"],"not_rendered":{"images":2,"defined_names":4},"read":"whole","date_system":"1900"}

{"sheet":"OMKOSTNINGER VED OMBYGNING","index":0,"n_rows":28,"n_cols":8,"rows_kept":28,"merged":[[25,1,25,5],[26,1,26,5],[27,1,27,5]]}
[null,"REGNEARKET OMKOSTNINGER VED OMBYGNING AF KØKKENET"]
[]
[null,"Kategori","Elementer","Antal","Anslåede omkostninger","Faktiske omkostninger","Samlede anslåede omkostninger","Samlede faktiske omkostninger"]
[null,"Skabe","Nedre skabe: Modulær-standard (størrelse i centimeter)",25,{"v":5,"d":"kr. 5.00"},null,{"$f":"Data[[#This Row],[Antal]]*Data[[#This Row],[Anslåede omkostninger]]","v":{"v":125,"d":"kr. 125"}},{"$f":"Data[[#This Row],[Antal]]*Data[[#This Row],[Faktiske omkostninger]]","v":{"v":0,"d":"kr. 0"}}]
[null,"Skabe","Øvre skabe: Modulær-standard (størrelse i centimeter)",25,{"v":3.5,"d":"kr. 3.50"},null,{"$f":"Data[[#This Row],[Antal]]*Data[[#This Row],[Anslåede omkostninger]]","v":{"v":87.5,"d":"kr. 88"}},{"$f":"Data[[#This Row],[Antal]]*Data[[#This Row],[Faktiske omkostninger]]","v":{"v":0,"d":"kr. 0"}}]
[null,"Rengøringsapparater","Opvaskemaskine: Standard",1,{"v":250,"d":"kr. 250.00"},null,{"$f":"Data[[#This Row],[Antal]]*Data[[#This Row],[Anslåede omkostninger]]","v":{"v":250,"d":"kr. 250"}},{"$f":"Data[[#This Row],[Antal]]*Data[[#This Row],[Faktiske omkostninger]]","v":{"v":0,"d":"kr. 0"}}]
[null,"Rengøringsapparater","Affaldskværn: Standard",1,{"v":175,"d":"kr. 175.00"},null,{"$f":"Data[[#This Row],[Antal]]*Data[[#This Row],[Anslåede omkostninger]]","v":{"v":175,"d":"kr. 175"}},{"$f":"Data[[#This Row],[Antal]]*Data[[#This Row],[Faktiske omkostninger]]","v":{"v":0,"d":"kr. 0"}}]
[null,"Køkkenudstyr","Område: Sammensætning, standard",1,{"v":375,"d":"kr. 375.00"},null,{"$f":"Data[[#This Row],[Antal]]*Data[[#This Row],[Anslåede omkostninger]]","v":{"v":375,"d":"kr. 375"}},{"$f":"Data[[#This Row],[Antal]]*Data[[#This Row],[Faktiske omkostninger]]","v":{"v":0,"d":"kr. 0"}}]
[null,"Køkkenudstyr","Mikrobølgeovn: Standard",1,{"v":300,"d":"kr. 300.00"},null,{"$f":"Data[[#This Row],[Antal]]*Data[[#This Row],[Anslåede omkostninger]]","v":{"v":300,"d":"kr. 300"}},{"$f":"Data[[#This Row],[Antal]]*Data[[#This Row],[Faktiske omkostninger]]","v":{"v":0,"d":"kr. 0"}}]
[null,"Køkkenborde","Massiv overflade (størrelse i centimeter)",23,{"v":10,"d":"kr. 10.00"},null,{"$f":"Data[[#This Row],[Antal]]*Data[[#This Row],[Anslåede omkostninger]]","v":{"v":230,"d":"kr. 230"}},{"$f":"Data[[#This Row],[Antal]]*Data[[#This Row],[Faktiske omkostninger]]","v":{"v":0,"d":"kr. 0"}}]
[null,"Døre","Interiør: Fineret massiv",1,{"v":65,"d":"kr. 65.00"},null,{"$f":"Data[[#This Row],[Antal]]*Data[[#This Row],[Anslåede omkostninger]]","v":{"v":65,"d":"kr. 65"}},{"$f":"Data[[#This Row],[Antal]]*Data[[#This Row],[Faktiske omkostninger]]","v":{"v":0,"d":"kr. 0"}}]
[null,"Ekstra","Ekstra: Kogende vandhane, standard",1,{"v":120,"d":"kr. 120.00"},null,{"$f":"Data[[#This Row],[Antal]]*Data[[#This Row],[Anslåede omkostninger]]","v":{"v":120,"d":"kr. 120"}},{"$f":"Data[[#This Row],[Antal]]*Data[[#This Row],[Faktiske omkostninger]]","v":{"v":0,"d":"kr. 0"}}]
[null,"Ekstra","Ekstra: Sæbeholder",1,{"v":40,"d":"kr. 40.00"},null,{"$f":"Data[[#This Row],[Antal]]*Data[[#This Row],[Anslåede omkostninger]]","v":{"v":40,"d":"kr. 40"}},{"$f":"Data[[#This Row],[Antal]]*Data[[#This Row],[Faktiske omkostninger]]","v":{"v":0,"d":"kr. 0"}}]
[null,"Vandhaner","Vandhane: Håndtag, standard",1,{"v":130,"d":"kr. 130.00"},null,{"$f":"Data[[#This Row],[Antal]]*Data[[#This Row],[Anslåede omkostninger]]","v":{"v":130,"d":"kr. 130"}},{"$f":"Data[[#This Row],[Antal]]*Data[[#This Row],[Faktiske omkostninger]]","v":{"v":0,"d":"kr. 0"}}]
[null,"Gulv","Laminat (størrelse i kvadratmeter)",165,{"v":3.5,"d":"kr. 3.50"},null,{"$f":"Data[[#This Row],[Antal]]*Data[[#This Row],[Anslåede omkostninger]]","v":{"v":577.5,"d":"kr. 578"}},{"$f":"Data[[#This Row],[Antal]]*Data[[#This Row],[Faktiske omkostninger]]","v":{"v":0,"d":"kr. 0"}}]
[null,"Vasketøjsmaskiner","Vaskemaskine: Standard",1,{"v":500,"d":"kr. 500.00"},null,{"$f":"Data[[#This Row],[Antal]]*Data[[#This Row],[Anslåede omkostninger]]","v":{"v":500,"d":"kr. 500"}},{"$f":"Data[[#This Row],[Antal]]*Data[[#This Row],[Faktiske omkostninger]]","v":{"v":0,"d":"kr. 0"}}]
[null,"Vasketøjsmaskiner","Tørretumbler: Standard",1,{"v":375,"d":"kr. 375.00"},null,{"$f":"Data[[#This Row],[Antal]]*Data[[#This Row],[Anslåede omkostninger]]","v":{"v":375,"d":"kr. 375"}},{"$f":"Data[[#This Row],[Antal]]*Data[[#This Row],[Faktiske omkostninger]]","v":{"v":0,"d":"kr. 0"}}]
[null,"Belysning","Belysning: Loftslampe",4,{"v":35,"d":"kr. 35.00"},null,{"$f":"Data[[#This Row],[Antal]]*Data[[#This Row],[Anslåede omkostninger]]","v":{"v":140,"d":"kr. 140"}},{"$f":"Data[[#This Row],[Antal]]*Data[[#This Row],[Faktiske omkostninger]]","v":{"v":0,"d":"kr. 0"}}]
[null,"Køleskabe","Køleskab: Fritstående, luksus",1,{"v":1200,"d":"kr. 1,200.00"},null,{"$f":"Data[[#This Row],[Antal]]*Data[[#This Row],[Anslåede omkostninger]]","v":{"v":1200,"d":"kr. 1,200"}},{"$f":"Data[[#This Row],[Antal]]*Data[[#This Row],[Faktiske omkostninger]]","v":{"v":0,"d":"kr. 0"}}]
[null,"Køkkenvaske","Dobbeltvask i rustfrit stål",1,{"v":125,"d":"kr. 125.00"},null,{"$f":"Data[[#This Row],[Antal]]*Data[[#This Row],[Anslåede omkostninger]]","v":{"v":125,"d":"kr. 125"}},{"$f":"Data[[#This Row],[Antal]]*Data[[#This Row],[Faktiske omkostninger]]","v":{"v":0,"d":"kr. 0"}}]
[null,"Ventilering","Emhætte: Ventilationskanal",1,{"v":180,"d":"kr. 180.00"},null,{"$f":"Data[[#This Row],[Antal]]*Data[[#This Row],[Anslåede omkostninger]]","v":{"v":180,"d":"kr. 180"}},{"$f":"Data[[#This Row],[Antal]]*Data[[#This Row],[Faktiske omkostninger]]","v":{"v":0,"d":"kr. 0"}}]
[null,"Vægge","Gipsplade (størrelse i kvadratmeter)",70,{"v":2,"d":"kr. 2.00"},null,{"$f":"Data[[#This Row],[Antal]]*Data[[#This Row],[Anslåede omkostninger]]","v":{"v":140,"d":"kr. 140"}},{"$f":"Data[[#This Row],[Antal]]*Data[[#This Row],[Faktiske omkostninger]]","v":{"v":0,"d":"kr. 0"}}]
[null,"Vinduer","Forskydelig",2,{"v":120,"d":"kr. 120.00"},null,{"$f":"Data[[#This Row],[Antal]]*Data[[#This Row],[Anslåede omkostninger]]","v":{"v":240,"d":"kr. 240"}},{"$f":"Data[[#This Row],[Antal]]*Data[[#This Row],[Faktiske omkostninger]]","v":{"v":0,"d":"kr. 0"}}]
[null,"Andet",{"$nulls":4},{"$f":"Data[[#This Row],[Antal]]*Data[[#This Row],[Anslåede omkostninger]]","v":{"v":0,"d":"kr. 0"}},{"$f":"Data[[#This Row],[Antal]]*Data[[#This Row],[Faktiske omkostninger]]","v":{"v":0,"d":"kr. 0"}}]
[null,"Total",null,null,{"$f":"SUBTOTAL(109,Data[Anslåede omkostninger])","v":{"v":4014,"d":"kr. 4,014.00"}},{"$f":"SUBTOTAL(109,Data[Faktiske omkostninger])","v":{"v":0,"d":"kr. 0.00"}},{"$f":"SUBTOTAL(109,Data[Samlede anslåede omkostninger])","v":{"v":5375,"d":"kr. 5,375.00"}},{"$f":"SUBTOTAL(109,Data[Samlede faktiske omkostninger])","v":{"v":0,"d":"kr. 0.00"}}]
[null,"Subtotal",{"$nulls":4},{"$f":"SUBTOTAL(109,Data[Samlede anslåede omkostninger])","v":{"v":5375,"d":"kr. 5,375.00"}},{"$f":"SUBTOTAL(109,Data[Samlede faktiske omkostninger])","v":{"v":0,"d":"kr. 0.00"}}]
[null,"Uventede omkostninger – tilføj 30 %",{"$nulls":4},{"$f":"G26*0.3","v":{"v":1612.5,"d":"kr. 1,612.50"}},{"$f":"H26*0.3","v":{"v":0,"d":"kr. 0.00"}}]
[null,"Total",{"$nulls":4},{"$f":"SUM(G26:G27)","v":{"v":6987.5,"d":"kr. 6,987.50"}},{"$f":"SUM(H26:H27)","v":{"v":0,"d":"kr. 0.00"}}]